bitfinex/quotes_BTCUSD_20251201
["timestamp","ask_amount","ask_price","bid_price","bid_amount"]
[1764577489320,0.70432267,86646.0,86626.0,0.10396905]
[1764577489490,0.70432267,86646.0,86626.0,0.09242518]
[1764577489895,0.70432267,86646.0,86627.0,0.01154374]
[1764577490677,0.70432267,86646.0,86629.0,0.01154347]
[1764577491227,0.70432267,86646.0,86630.0,0.01154334]
[1764577491453,0.70432267,86646.0,86629.0,0.24241301]
[1764577491651,0.70432267,86646.0,86628.0,0.24241443]
[1764577491858,0.7042638,86646.0,86628.0,0.01154361]
[1764577492058,0.7041418,86646.0,86628.0,0.01154361]
[1764577492970,0.7041418,86646.0,86630.0,0.01154334]
[1764577493293,0.7041418,86646.0,86629.0,0.01154347]
[1764577493448,0.7041418,86646.0,86628.0,0.01154361]
[1764577493978,0.7041418,86646.0,86627.0,0.01154374]
[1764577494127,0.7041418,86646.0,86626.0,0.10327518]
[1764577494335,0.7041418,86646.0,86616.0,0.09242518]
[1764577494336,0.81784471,86646.0,86616.0,0.09242518]
[1764577494532,0.81784471,86646.0,86616.0,0.10397039]
[1764577494899,0.81784471,86646.0,86620.0,0.01154467]
[1764577495100,0.81684471,86646.0,86619.0,0.24244084]
[1764577495302,0.81684471,86646.0,86621.0,0.01154454]
[1764577495504,0.82284471,86646.0,86621.0,0.01154454]
[1764577495704,0.81684471,86646.0,86622.0,0.01154441]
[1764577496151,0.82284471,86646.0,86622.0,0.01154441]
[1764577496334,0.85395052,86646.0,86622.0,0.01154441]
[1764577496469,0.85395052,86646.0,86623.0,0.01154427]
[1764577496677,0.74024761,86646.0,86624.0,0.01154414]
[1764577496881,0.74024761,86646.0,86622.0,0.24243231]
[1764577497099,0.74024761,86646.0,86623.0,0.23088316]
[1764577497345,0.74024761,86646.0,86625.0,0.01154401]
[1764577497545,0.74024761,86646.0,86626.0,0.01154387]
[1764577497947,0.74024761,86646.0,86627.0,0.01154374]
[1764577498358,0.7031418,86646.0,86627.0,0.01154374]
[1764577498731,0.7071418,86646.0,86626.0,0.01154387]
[1764577498932,0.7071418,86646.0,86628.0,0.01154361]
[1764577499130,0.7071418,86646.0,86625.0,0.01154401]
[1764577499314,0.7071418,86646.0,86626.0,0.24242083]
[1764577499520,0.7071418,86646.0,86627.0,0.01154374]
[1764577500471,0.7071418,86646.0,86632.0,0.01085]
[1764577500638,0.64461881,86646.0,86635.0,0.01066]
[1764577500838,0.64461881,86646.0,86631.0,0.01154321]
[1764577501064,0.64461881,86646.0,86637.0,0.01154241]
[1764577501394,0.64461881,86646.0,86638.0,0.01154227]
[1764577501531,0.64461881,86646.0,86637.0,0.24239056]
[1764577501931,0.64461881,86646.0,86638.0,0.24238674]
[1764577502170,0.64461881,86646.0,86638.0,0.01154227]
[1764577502439,0.64461881,86646.0,86637.0,0.01154241]
[1764577502641,0.64275415,86646.0,86637.0,0.24238818]
[1764577502841,0.64275415,86646.0,86633.0,0.01154294]
[1764577503134,0.64275415,86646.0,86635.0,0.01154267]
[1764577503333,0.64275415,86646.0,86638.0,0.01154227]
[1764577503492,0.64275415,86646.0,86635.0,0.01154267]
[1764577503695,0.64275415,86646.0,86634.0,0.01154281]
[1764577503896,0.64275415,86646.0,86635.0,0.01154267]
[1764577504096,0.64275415,86646.0,86635.0,0.23085314]
[1764577504317,0.64275415,86646.0,86636.0,0.01154254]
[1764577504761,0.64275415,86646.0,86637.0,0.23084789]
[1764577504910,0.64275415,86646.0,86637.0,0.01154241]
[1764577505300,0.64275415,86646.0,86636.0,0.24239215]
[1764577505551,0.64275415,86646.0,86638.0,0.23084525]
[1764577505694,0.64275415,86646.0,86640.0,0.23083978]
[1764577505898,0.64275415,86646.0,86641.0,0.01154187]
[1764577506183,0.64273953,86646.0,86641.0,0.01154187]
[1764577506394,0.64273953,86646.0,86645.0,0.04147304]
[1764577506395,0.02639401,86646.0,86645.0,0.04147304]
[1764577506605,0.004,86646.0,86645.0,0.27229997]
[1764577506804,0.004,86646.0,86645.0,0.32364515]
[1764577507002,0.004,86646.0,86645.0,0.36472515]
[1764577507431,0.323,86655.0,86652.0,0.24234783]
[1764577507580,0.323,86655.0,86652.0,0.01154041]
[1764577507765,0.323,86655.0,86654.0,0.23080296]
[1764577507971,0.5538003,86655.0,86651.0,0.01154054]
[1764577508173,0.23080326,86654.0,86651.0,0.01154054]
[1764577508720,0.04623678,86656.0,86652.0,0.01154041]
[1764577509012,0.27703475,86656.0,86654.0,0.001]
[1764577509155,0.27703475,86656.0,86653.0,0.23080528]
[1764577509358,0.27703475,86656.0,86652.0,0.24234857]
[1764577509806,0.23080113,86655.0,86652.0,0.24234857]
[1764577510036,0.23080377,86654.0,86652.0,0.24234857]
[1764577510238,0.01154054,86651.0,86647.0,0.01154108]
[1764577510530,0.01154054,86651.0,86648.0,0.2423597]
[1764577510756,0.01154054,86651.0,86647.0,0.01154108]
[1764577510936,0.01154054,86651.0,86648.0,0.2423587]
[1764577511112,0.24235383,86652.0,86648.0,0.2423587]
[1764577511430,0.01154041,86652.0,86648.0,0.2423587]
[1764577511631,0.23080576,86653.0,86650.0,0.23081357]
[1764577511858,0.25473913,86652.0,86648.0,0.2423587]
[1764577512007,0.24235156,86651.0,86647.0,0.24236028]
[1764577512209,0.01154054,86651.0,86648.0,0.24235874]
[1764577512649,0.01154054,86651.0,86649.0,0.23081615]
[1764577512847,0.01154094,86648.0,86645.0,0.00039304]
[1764577513016,0.01527,86646.0,86645.0,0.23121982]
[1764577513211,0.02400068,86650.0,86647.0,0.09242518]
[1764577513679,0.23081671,86649.0,86647.0,0.09242518]
[1764577514176,0.25481452,86650.0,86647.0,0.32324614]
[1764577514315,0.02400068,86650.0,86647.0,0.09242518]
[1764577514503,0.23081879,86649.0,86647.0,0.09242518]
[1764577515143,0.23081894,86648.0,86647.0,0.09242518]
[1764577515347,0.23082427,86646.0,86645.0,0.00039304]
[1764577515524,0.24609427,86646.0,86645.0,0.00039304]
[1764577515728,0.27002427,86646.0,86645.0,0.00039304]
[1764577516654,0.30472486,86646.0,86645.0,0.00039304]
[1764577516837,0.30462371,86646.0,86645.0,0.00039304]
[1764577517046,0.62762371,86646.0,86645.0,0.00139304]
[1764577517434,0.65252763,86646.0,86645.0,0.00139304]
[1764577524004,0.64675663,86646.0,86645.0,0.00139304]
[1764577525197,0.61205604,86646.0,86645.0,0.00139304]
[1764577531974,0.02490392,86646.0,86645.0,0.23221997]
[1764577532214,0.01246,86650.0,86647.0,0.01154108]
[1764577532421,0.01246,86650.0,86645.0,0.09381822]
[1764577532422,0.01655,86646.0,86645.0,0.00139304]
[1764577532863,0.29167628,86649.0,86645.0,0.00139304]
[1764577533045,0.26677209,86648.0,86645.0,0.00139304]
[1764577533740,0.26677209,86648.0,86645.0,0.23121939]
[1764577533961,0.26676991,86648.0,86645.0,0.24276073]
[1764577534170,0.24737427,86646.0,86645.0,0.00039304]
[1764577534333,0.01655,86646.0,86645.0,0.23121997]
[1764577534570,0.04096,86646.0,86645.0,0.00039304]
[1764577534739,0.04096,86646.0,86645.0,0.23221997]
[1764577535095,0.2548196,86650.0,86646.0,0.24236548]
[1764577535296,0.24235709,86649.0,86645.0,0.23221778]
[1764577535500,0.04934249,86649.0,86646.0,0.24236335]
[1764577535642,0.23081674,86649.0,86647.0,0.23081946]
[1764577535991,0.02441,86649.0,86646.0,0.24236335]
[1764577536224,0.2552313,86648.0,86645.0,0.23221974]
[1764577536394,0.03595094,86648.0,86645.0,0.23221974]
[1764577536582,0.03595094,86648.0,86645.0,0.23121974]
[1764577536783,0.24737427,86646.0,86645.0,0.00039304]
[1764577537164,0.27178427,86646.0,86645.0,0.00039304]
[1764577537363,0.27178427,86646.0,86645.0,0.00139304]
[1764577537585,0.27178427,86646.0,86645.0,0.00039304]
[1764577537813,0.24737427,86646.0,86645.0,0.00039304]
[1764577538014,0.27178427,86646.0,86645.0,0.00139304]
[1764577541390,0.29672592,86646.0,86645.0,0.00139304]
[1764577543323,0.29672592,86646.0,86645.0,0.23221997]
[1764577543324,0.02494165,86646.0,86645.0,0.23221997]
[1764577543532,0.01246,86650.0,86647.0,0.01154108]
[1764577543715,0.01246,86650.0,86646.0,0.24236489]
[1764577543917,0.01246,86650.0,86645.0,0.00139304]
[1764577543918,0.01655,86646.0,86645.0,0.00139304]
[1764577544113,0.24737427,86646.0,86645.0,0.00139304]
[1764577544358,0.04096,86646.0,86645.0,0.23221997]
[1764577544558,0.04096,86646.0,86645.0,0.00139304]
[1764577544717,0.27178427,86646.0,86645.0,0.00139304]
[1764577545926,0.04096,86646.0,86645.0,0.00139304]
[1764577546603,0.04096,86646.0,86645.0,0.23221997]
[1764577548929,0.04096,86646.0,86645.0,0.00139304]
[1764577549747,0.04096,86646.0,86645.0,0.23221997]
[1764577549938,0.04096,86646.0,86645.0,0.00139304]
[1764577550359,0.27178427,86646.0,86645.0,0.00139304]
[1764577550560,0.04096,86646.0,86645.0,0.00139304]
[1764577550711,0.01246,86650.0,86647.0,0.23081997]
[1764577550912,0.24327386,86650.0,86647.0,0.24236105]
[1764577551117,0.03740732,86650.0,86647.0,0.24236105]
[1764577551297,0.24739076,86648.0,86645.0,0.00139304]
[1764577551483,0.2308217,86647.0,86645.0,0.23221993]
[1764577551689,0.25576902,86647.0,86645.0,0.23221993]
[1764577551887,0.02494732,86647.0,86645.0,0.23221993]
[1764577552092,0.02494732,86647.0,86646.0,0.23082427]
[1764577552294,0.02494732,86650.0,86647.0,0.23082013]
[1764577552514,0.23081894,86648.0,86646.0,0.0108]
[1764577552717,0.2308216,86647.0,86646.0,0.0108]
[1764577552941,0.25576892,86647.0,86645.0,0.00039304]
[1764577553113,0.25576892,86647.0,86646.0,0.001]
[1764577553422,0.25576892,86647.0,86645.0,0.00039304]
[1764577553621,0.02494732,86647.0,86645.0,0.00039304]
[1764577553835,0.02494732,86647.0,86646.0,0.001]
[1764577554157,0.02494732,86647.0,86645.0,0.23121802]
[1764577554358,0.2673072,86648.0,86645.0,0.23121802]
[1764577554560,0.03648826,86648.0,86646.0,0.2308238]
[1764577554756,0.01154094,86648.0,86646.0,0.2308238]
[1764577554953,0.03648826,86648.0,86646.0,0.2308238]
[1764577555162,0.01154094,86648.0,86646.0,0.2308238]
[1764577555416,0.01154094,86648.0,86646.0,0.2318238]
[1764577555810,0.2423605,86648.0,86646.0,0.2308238]
[1764577556043,0.02494732,86648.0,86647.0,0.2308216]
[1764577556192,0.24235343,86651.0,86647.0,0.2308216]
[1764577556193,0.26730095,86651.0,86647.0,0.25316268]
[1764577556800,0.23081556,86650.0,86647.0,0.25316268]
[1764577556966,0.25576288,86650.0,86647.0,0.25316268]
[1764577557373,0.23081656,86649.0,86647.0,0.25316268]
[1764577557575,0.23081894,86648.0,86645.0,0.00039304]
[1764577557782,0.02494732,86648.0,86647.0,0.2308216]
[1764577558020,0.23081678,86649.0,86647.0,0.2308216]
[1764577558466,0.23081678,86649.0,86646.0,0.23082356]
[1764577558636,0.23081902,86648.0,86646.0,0.23082356]
[1764577558943,0.02494732,86648.0,86646.0,0.23082356]
[1764577559447,0.02495725,86650.0,86648.0,0.23081705]
[1764577559678,0.02495725,86651.0,86649.0,0.23081628]
[1764577559870,0.23081109,86651.0,86648.0,0.24235799]
[1764577560233,0.25576834,86651.0,86648.0,0.24235799]
[1764577561150,0.02495725,86650.0,86648.0,0.24235799]
[1764577561350,0.02495725,86650.0,86649.0,0.23081628]
[1764577561550,0.25577086,86650.0,86648.0,0.01154094]
[1764577562457,0.25577086,86650.0,86647.0,0.24236189]
[1764577562458,0.23081628,86649.0,86647.0,0.24236189]
[1764577562710,0.26731377,86650.0,86647.0,0.24236189]
[1764577563526,0.26731377,86650.0,86648.0,0.23081876]
[1764577563726,0.23081686,86649.0,86647.0,0.24236189]
[1764577563925,0.23082087,86648.0,86645.0,0.00021304]
[1764577564150,0.2308235,86647.0,86645.0,0.00021304]
[1764577564459,0.02495725,86647.0,86645.0,0.23103945]
[1764577564661,0.24236181,86648.0,86645.0,0.24258079]
[1764577565215,0.26731531,86649.0,86646.0,0.24236459]
[1764577565624,0.02495725,86649.0,86648.0,0.23081894]
[1764577565998,0.24235907,86649.0,86646.0,0.25316472]
[1764577566203,0.26731632,86649.0,86646.0,0.25316472]
[1764577567024,0.23081918,86648.0,86646.0,0.25316472]
[1764577567233,0.25577643,86648.0,86646.0,0.25316472]
[1764577567470,0.02495725,86648.0,86646.0,0.25316472]
[1764577567670,0.26731632,86649.0,86646.0,0.25316472]
[1764577567829,0.26731632,86649.0,86647.0,0.23082039]
[1764577568025,0.02495725,86648.0,86647.0,0.23082039]
[1764577568332,0.24235907,86649.0,86647.0,0.23082039]
[1764577568571,0.23081718,86649.0,86647.0,0.23082039]
[1764577568783,0.25577546,86649.0,86646.0,0.25316465]
[1764577568986,0.25577546,86649.0,86647.0,0.23082152]
[1764577569216,0.02495725,86649.0,86647.0,0.23082152]
[1764577569510,0.26731213,86650.0,86647.0,0.23082152]
[1764577569693,0.02495725,86650.0,86648.0,0.23081889]
[1764577569851,0.02495725,86650.0,86649.0,0.23081628]
[1764577570422,0.02495725,86650.0,86648.0,0.23081889]
[1764577570828,0.02495725,86650.0,86649.0,0.23081628]
[1764577571146,0.02495725,86651.0,86650.0,0.23081361]
[1764577571331,0.02495725,86652.0,86651.0,0.23081095]
[1764577571530,0.02495725,86653.0,86652.0,0.23080829]
[1764577572481,0.02495725,86654.0,86653.0,0.23080562]
[1764577572882,0.02495725,86654.0,86652.0,0.23080829]
[1764577573090,0.02495725,86653.0,86652.0,0.23080829]
[1764577574834,0.02595725,86653.0,86652.0,0.23080829]
[1764577576379,0.001,86653.0,86652.0,0.27119829]
[1764577578147,0.0115,86659.0,86658.0,0.23079231]
[1764577578541,0.02303948,86659.0,86655.0,0.230795]
[1764577578742,0.23079231,86658.0,86657.0,0.09242518]
[1764577578906,0.02495725,86658.0,86657.0,0.09242518]
[1764577579303,0.25383142,86659.0,86657.0,0.09242518]
[1764577579690,0.25383142,86659.0,86650.0,0.24235198]
[1764577579691,0.01153974,86657.0,86650.0,0.24235198]
[1764577579891,0.23080268,86655.0,86652.0,0.003]
[1764577580114,0.24234269,86655.0,86652.0,0.01154041]
[1764577580315,0.02323,86657.0,86654.0,0.23080268]
[1764577580686,0.25402497,86657.0,86656.0,0.09242518]
[1764577580997,0.03968,86657.0,86656.0,0.32322281]
[1764577581672,0.03968,86657.0,86656.0,0.09242518]
[1764577581859,0.03968,86657.0,86656.0,0.32322281]
[1764577582088,0.03968,86657.0,86656.0,0.09242518]
[1764577582376,0.01645,86657.0,86656.0,0.32322281]
[1764577582749,0.02303948,86659.0,86657.0,0.23079316]
[1764577582750,0.0115,86659.0,86657.0,0.23079316]
[1764577582935,0.0115,86659.0,86658.0,0.23079231]
[1764577583135,0.03473,86659.0,86657.0,0.23079316]
[1764577583318,0.03473,86659.0,86656.0,0.09242518]
[1764577583319,0.26552052,86659.0,86656.0,0.09242518]
[1764577583519,0.03473,86659.0,86657.0,0.23079376]
[1764577583929,0.26552004,86659.0,86657.0,0.23079376]
[1764577584134,0.23079243,86658.0,86656.0,0.09242518]
[1764577584430,0.27047243,86658.0,86656.0,0.09242518]
[1764577584631,0.27047497,86657.0,86656.0,0.09242518]
[1764577585632,0.28197497,86657.0,86656.0,0.09242518]
[1764577586397,0.0115,86657.0,86656.0,0.09242518]
[1764577586598,0.04623374,86661.0,86656.0,0.09242518]
[1764577586599,0.03469453,86661.0,86659.0,0.23078762]
[1764577586961,0.03469453,86661.0,86657.0,0.01153974]
[1764577587184,0.0115,86659.0,86658.0,0.23079224]
[1764577587989,0.02298,86659.0,86656.0,0.09242518]
[1764577588186,0.2307988,86656.0,86652.0,0.24234858]
[1764577588409,0.0115,86657.0,86654.0,0.2308013]
[1764577588612,0.0115,86657.0,86656.0,0.09242518]
[1764577589045,0.02742,86657.0,86656.0,0.09242518]
[1764577589214,0.05119,86657.0,86656.0,0.09242518]
[1764577589419,0.05119,86657.0,86656.0,0.32322281]
[1764577589785,0.03969,86657.0,86656.0,0.32322281]
[1764577590133,0.05119,86657.0,86656.0,0.09242518]
[1764577590324,0.05119,86657.0,86656.0,0.32322281]
[1764577592025,0.02742,86657.0,86656.0,0.09242518]
[1764577592341,0.02742,86657.0,86650.0,0.00728]
[1764577592342,0.01153988,86656.0,86650.0,0.00728]
[1764577592524,0.0115,86651.0,86650.0,0.00728]
[1764577592725,0.0115,86651.0,86650.0,0.23809123]
[1764577593340,0.01148,86654.0,86652.0,0.23080636]
[1764577593555,0.0115,86653.0,86652.0,0.23080636]
[1764577594831,0.02298,86654.0,86653.0,0.23080562]
[1764577595454,0.0115,86654.0,86653.0,0.23080562]
[1764577596286,0.0115,86654.0,86653.0,0.27015562]
[1764577598774,0.0115,86654.0,86653.0,0.24725562]
[1764577599000,0.0115,86660.0,86659.0,0.23078827]
[1764577599347,0.01153934,86661.0,86660.0,0.23078698]
[1764577599348,0.02493616,86661.0,86660.0,0.23078698]
[1764577599547,0.0115,86675.0,86674.0,0.2307497]
[1764577600282,0.01148,86682.0,86678.0,0.01153695]
[1764577600637,0.0115,86680.0,86679.0,0.23073456]
[1764577601599,0.25374497,86682.0,86678.0,0.24227118]
[1764577601973,0.23073133,86681.0,86678.0,0.24227118]
[1764577602181,0.24226788,86681.0,86678.0,0.24227118]
[1764577603120,0.23073406,86680.0,86678.0,0.24227118]
[1764577603369,0.23073406,86680.0,86676.0,0.2307436]
[1764577603370,0.23073639,86679.0,86676.0,0.2307436]
[1764577603541,0.24227346,86679.0,86675.0,0.24228258]
[1764577603685,0.01153681,86679.0,86675.0,0.24228258]
[1764577603889,0.24227383,86679.0,86675.0,0.24228258]
[1764577604123,0.24227383,86679.0,86675.0,0.01153735]
[1764577604526,0.24227383,86679.0,86675.0,0.2422834]
[1764577605462,0.25315383,86679.0,86676.0,0.24227946]
[1764577605904,0.25315383,86679.0,86664.0,0.23077621]
[1764577605905,0.24229609,86671.0,86664.0,0.23077621]
[1764577606102,0.24229609,86671.0,86663.0,0.01881894]
[1764577606103,0.0115,86667.0,86666.0,0.09242518]
[1764577606848,0.03487,86667.0,86666.0,0.09242518]
[1764577607298,0.03487,86667.0,86666.0,0.09342518]
[1764577607783,0.03487,86667.0,86666.0,0.32419618]
[1764577608982,0.03487,86667.0,86666.0,0.09342518]
[1764577609190,0.28107834,86667.0,86666.0,0.09342518]
[1764577610933,0.01544,86667.0,86666.0,0.32419618]
[1764577611137,0.25378118,86669.0,86666.0,0.09342518]
[1764577611316,0.0115,86667.0,86666.0,0.09342518]
[1764577611516,0.0115,86667.0,86666.0,0.32419618]
[1764577612921,0.0115,86675.0,86669.0,0.01153815]
[1764577613287,0.03468787,86677.0,86672.0,0.01153775]
[1764577613440,0.3345,86678.0,86676.0,0.23074438]
[1764577613637,0.0115,86678.0,86676.0,0.23074438]
[1764577613846,0.0115,86678.0,86675.0,0.24228439]
[1764577613847,0.24223925,86678.0,86675.0,0.01153735]
[1764577614049,0.2537762,86678.0,86675.0,0.23074646]
[1764577614289,0.24228203,86676.0,86672.0,0.01153775]
[1764577614492,0.0115,86673.0,86672.0,0.2422906]
[1764577616065,0.0125,86673.0,86671.0,0.24229474]
[1764577616243,0.0115,86672.0,86671.0,0.24229474]
[1764577618577,0.0125,86672.0,86671.0,0.24229474]
[1764577619746,0.0115,86672.0,86671.0,0.24229474]
[1764577620158,0.02238,86679.0,86678.0,0.23073905]
[1764577620557,0.0115,86679.0,86678.0,0.23073905]
[1764577620771,0.03451642,86682.0,86680.0,0.23073346]
[1764577620985,0.0115,86682.0,86681.0,0.09242518]
[1764577621319,0.0115,86682.0,86681.0,0.32315625]
[1764577621462,0.0346853,86687.0,86686.0,0.23071776]
[1764577621667,0.02365,86693.0,86692.0,0.24223468]
[1764577622283,0.01215,86693.0,86690.0,0.24224243]
[1764577622495,0.0115,86691.0,86690.0,0.24224243]
[1764577623336,0.0115,86691.0,86690.0,0.01153535]
[1764577623583,0.01153588,86686.0,86682.0,0.01153642]
[1764577623783,0.0115,86684.0,86683.0,0.32315092]
[1764577623950,0.0115,86684.0,86683.0,0.09242518]
[1764577624145,0.03487,86684.0,86683.0,0.09242518]
[1764577625005,0.28103308,86684.0,86683.0,0.09242518]
[1764577625745,0.05031,86684.0,86683.0,0.09242518]
[1764577627386,0.05031,86684.0,86683.0,0.32315092]
[1764577627569,0.02694,86684.0,86683.0,0.32315092]
[1764577627783,0.0115,86684.0,86683.0,0.32315092]
[1764577628448,0.25700031,86693.0,86689.0,0.24224288]
[1764577628672,0.0115,86691.0,86690.0,0.24224112]
[1764577628865,0.0115,86691.0,86690.0,0.01153535]
[1764577629080,0.0115,86691.0,86690.0,0.24224246]
[1764577629372,0.0115,86691.0,86689.0,0.01153548]
[1764577630379,0.0115,86691.0,86688.0,0.24224792]
[1764577630675,0.24220457,86691.0,86688.0,0.24224792]
[1764577630835,0.0115,86691.0,86688.0,0.24224792]
[1764577631677,0.24320494,86691.0,86688.0,0.24224792]
[1764577631993,0.24220494,86691.0,86688.0,0.24224792]
[1764577632174,0.0125,86691.0,86690.0,0.23070711]
[1764577632336,0.0125,86691.0,86689.0,0.23070968]
[1764577632534,0.0125,86691.0,86690.0,0.23070711]
[1764577632761,0.0125,86691.0,86689.0,0.23070968]
[1764577632966,0.0115,86691.0,86689.0,0.23070968]
[1764577633166,0.0115,86691.0,86690.0,0.23070711]
[1764577633661,0.0346821,86693.0,86691.0,0.23070325]
[1764577634072,0.27688261,86693.0,86690.0,0.25304216]
[1764577634270,0.001,86691.0,86690.0,0.25304216]
[1764577634470,0.0115,86693.0,86692.0,0.23070179]
[1764577634955,0.0135,86693.0,86692.0,0.23070179]
[1764577635154,0.0115,86693.0,86692.0,0.23070179]
[1764577635349,0.0115,86693.0,86691.0,0.23070445]
[1764577635508,0.24219987,86693.0,86691.0,0.23070445]
[1764577636047,0.24419987,86693.0,86691.0,0.23070445]
[1764577636264,0.0135,86693.0,86691.0,0.23070445]
[1764577636405,0.0135,86693.0,86692.0,0.23070179]
[1764577637482,0.0115,86693.0,86692.0,0.23070179]
[1764577637849,0.0135,86693.0,86692.0,0.23070179]
[1764577638050,0.0115,86693.0,86692.0,0.23070179]
[1764577638252,0.0135,86693.0,86692.0,0.23070179]
[1764577638878,0.01153535,86690.0,86685.0,0.01153602]
[1764577639057,0.0115,86689.0,86686.0,0.23071765]
[1764577639257,0.0115,86689.0,86687.0,0.23071443]
[1764577640294,0.0115,86689.0,86688.0,0.23071244]
[1764577640824,0.0115,86699.0,86693.0,0.01153495]
[1764577641159,0.323,86709.0,86693.0,0.01153495]
[1764577641160,0.323,86701.0,86699.0,0.23068316]
[1764577641350,0.32325342,86702.0,86699.0,0.23068316]
[1764577641504,0.12164216,86700.0,86699.0,0.23068316]
[1764577641708,0.12164216,86700.0,86699.0,0.26928316]
[1764577642827,0.12164216,86700.0,86699.0,0.24631316]
[1764577643384,0.12164216,86700.0,86699.0,0.24731316]
[1764577643725,0.12164216,86700.0,86699.0,0.23368316]
[1764577644711,0.12164216,86700.0,86699.0,0.003]
[1764577645149,0.12164216,86700.0,86699.0,0.23068316]
[1764577645348,0.12164216,86700.0,86697.0,0.09242518]
[1764577645509,0.12164216,86700.0,86697.0,0.1039596]
[1764577645707,0.12164216,86700.0,86699.0,0.001]
[1764577646335,0.12164216,86700.0,86699.0,0.23168316]
[1764577647100,0.13314216,86700.0,86699.0,0.23068316]
[1764577647280,0.13314216,86700.0,86699.0,0.23168316]
[1764577651091,0.13314216,86700.0,86699.0,0.001]
[1764577651501,0.13314216,86700.0,86699.0,0.23168316]
[1764577652780,0.13314216,86700.0,86699.0,0.001]
[1764577653119,0.40399266,86700.0,86699.0,0.001]
[1764577653960,0.01153482,86694.0,86691.0,0.24951963]
[1764577654164,0.0115,86692.0,86691.0,0.24951963]
[1764577654711,0.01172,86694.0,86691.0,0.24951963]
[1764577654712,0.01172,86694.0,86693.0,0.23069913]
[1764577654903,0.02322,86694.0,86693.0,0.23069913]
[1764577655471,0.0115,86694.0,86693.0,0.23069913]
[1764577655929,0.01172,86699.0,86696.0,0.24222335]
[1764577656093,0.12164216,86700.0,86698.0,0.01565]
[1764577656425,0.12164216,86700.0,86699.0,0.24633316]
[1764577656595,0.12164216,86700.0,86699.0,0.26935316]
[1764577659443,0.12164216,86700.0,86699.0,0.27235316]
[1764577660630,0.12164216,86700.0,86699.0,0.27335316]
[1764577663874,0.12164216,86700.0,86699.0,0.30801923]
[1764577665029,0.12164216,86700.0,86699.0,0.31529923]
[1764577667891,0.12164216,86700.0,86699.0,0.71529923]
[1764577671276,0.12164216,86700.0,86699.0,0.30801923]
[1764577671467,0.43318824,86700.0,86699.0,0.004]
[1764577671930,0.39135266,86700.0,86699.0,0.004]
[1764577672136,0.43318824,86700.0,86699.0,0.004]
[1764577672447,0.40285266,86700.0,86699.0,0.001]
[1764577672624,0.0115,86688.0,86687.0,0.01153575]
[1764577672838,0.0115,86688.0,86687.0,0.24225085]
[1764577673050,0.12164216,86700.0,86692.0,0.01153508]
[1764577673247,0.7660954,86700.0,86699.0,0.09242518]
[1764577673403,0.15617216,86700.0,86699.0,0.09242518]
[1764577673602,0.40285266,86700.0,86699.0,0.09242518]
[1764577674055,0.01153469,86695.0,86688.0,0.01153562]
[1764577674261,0.02303469,86695.0,86694.0,0.09242518]
[1764577674469,0.03217469,86695.0,86694.0,0.09242518]
[1764577674616,0.2628685,86695.0,86694.0,0.09242518]
[1764577675167,0.2788685,86695.0,86694.0,0.09242518]
[1764577675491,0.3018985,86695.0,86694.0,0.09342518]
[1764577677552,0.3018985,86695.0,86694.0,0.001]
[1764577680877,0.2422285,86695.0,86694.0,0.001]
[1764577681406,0.2927585,86695.0,86694.0,0.001]
[1764577683314,0.0115,86695.0,86694.0,0.001]
[1764577683545,0.23069332,86696.0,86694.0,0.001]
[1764577683729,0.23069381,86695.0,86694.0,0.001]
[1764577684365,0.2422285,86695.0,86692.0,0.23070144]
[1764577684575,0.01153482,86694.0,86691.0,0.01153522]
[1764577684731,0.01153482,86694.0,86691.0,0.24223835]
[1764577685144,0.24222901,86695.0,86694.0,0.001]
[1764577685331,0.23069983,86693.0,86691.0,0.01153522]
[1764577685728,0.23069983,86693.0,86691.0,0.01453522]
[1764577686074,0.23069983,86693.0,86691.0,0.001]
[1764577686075,0.35384388,86692.0,86691.0,0.001]
[1764577686272,0.35384388,86692.0,86677.0,0.00728]
[1764577686273,0.0115,86678.0,86677.0,0.00728]
[1764577688503,0.0115,86678.0,86677.0,0.00828]
[1764577689044,0.01153642,86682.0,86677.0,0.05798708]
[1764577689196,0.24226592,86682.0,86681.0,0.09242518]
[1764577689559,0.01153628,86683.0,86681.0,0.09242518]
[1764577689683,0.24225975,86684.0,86681.0,0.09242518]
[1764577690285,0.01153615,86684.0,86681.0,0.32315416]
[1764577690583,0.23072254,86685.0,86682.0,0.23072836]
[1764577690840,0.03553,86688.0,86682.0,0.24226458]
[1764577690988,0.23072204,86685.0,86682.0,0.24226458]
[1764577691190,0.24225527,86686.0,86682.0,0.24226458]
[1764577691385,0.03553,86688.0,86683.0,0.01153628]
[1764577691613,0.0115,86687.0,86685.0,0.01153602]
[1764577691810,0.0115,86686.0,86685.0,0.24225592]
[1764577692782,0.0125,86686.0,86685.0,0.24225592]
[1764577693811,0.0115,86686.0,86685.0,0.24225592]
[1764577694099,0.0125,86686.0,86685.0,0.24225592]
[1764577695542,0.001,86686.0,86685.0,0.24225592]
[1764577696333,0.001,86686.0,86683.0,0.02233628]
[1764577696334,0.001,86686.0,86683.0,0.25306145]
[1764577696542,0.001,86686.0,86684.0,0.23072109]
[1764577696984,0.001,86686.0,86685.0,0.23072042]
[1764577697185,0.24224315,86690.0,86687.0,0.23071457]
[1764577697367,0.23070991,86689.0,86687.0,0.23071457]
[1764577697718,0.23070991,86689.0,86686.0,0.24225337]
[1764577698208,0.23070991,86689.0,86687.0,0.23071488]
[1764577698616,0.23170991,86689.0,86687.0,0.23071488]
[1764577698799,0.23070482,86691.0,86687.0,0.01153575]
[1764577699052,0.24224004,86691.0,86688.0,0.23071032]
[1764577699252,0.001,86689.0,86688.0,0.23071032]
[1764577699612,0.001,86689.0,86687.0,0.24224571]
[1764577700056,0.23171095,86689.0,86686.0,0.24225327]
[1764577700357,0.23071095,86689.0,86686.0,0.24225327]
[1764577700526,0.23071095,86689.0,86687.0,0.2307146]
[1764577700724,0.23171095,86689.0,86687.0,0.2307146]
[1764577700931,0.24224348,86690.0,86687.0,0.24225035]
[1764577701132,0.00914,86692.0,86689.0,0.24224514]
[1764577701331,0.02067508,86692.0,86689.0,0.24224514]
[1764577701511,0.2513774,86692.0,86689.0,0.24224514]
[1764577701850,0.00914,86692.0,86690.0,0.23070692]
[1764577702166,0.00914,86692.0,86690.0,0.23070517]
[1764577702729,0.323,86693.0,86692.0,0.23070179]
[1764577702938,0.323,86699.0,86696.0,0.24222506]
[1764577703146,0.03644555,86698.0,86693.0,0.01153495]
[1764577703465,0.33453442,86697.0,86693.0,0.24223163]
[1764577703666,0.56522332,86697.0,86695.0,0.09242518]
[1764577703807,0.323,86697.0,86695.0,0.09242518]
[1764577704020,0.55369079,86697.0,86695.0,0.09242518]
[1764577704216,0.23069079,86697.0,86695.0,0.09242518]
[1764577704420,0.02491763,86697.0,86695.0,0.32311895]